[Event "Ceske Budejovice Open-A 2019"]
[Site "Ceske Budejovice"]
[Date "2019.07.02"]
[Round "4.11"]
[White "Glimbrant, Torbjorn"]
[Black "Rolinek, Dominik"]
[Result "1-0"]
[ECO "D45"]
[WhiteElo "2195"]
[BlackElo "2004"]
[Annotator "NA"]
[PlyCount "57"]
[EventDate "2019.07.02"]
[EventCountry "CZE"]
[SourceTitle "playchess.com"]
[Source "ChessBase"]
[SourceQuality "1"]
[TimeControl "5400+30"]

1. d4 {[%emt 0:00:53]} d5 {[%emt 0:00:18]} 2. Nf3 {[%emt 0:00:37]} Nf6 {[%emt 0:00:05]} 3. c4 {[%emt 0:00:17]} e6 {[%emt 0:00:05]} 4. Nc3 {[%emt 0:00:30]} c6 {[%emt 0:00:05]} 5. e3 {[%emt 0:00:41]} Nbd7 {[%emt 0:00:07]} 6. Qc2 {[%emt 0:00:55]} Bd6 {[%emt 0:00:27]} 7. Be2 {[%emt 0:01:23]} O-O {[%emt 0:00:39]} 8. O-O {[%emt 0:01:29]} b6 {[%emt 0:00:28]} 9. b3 {[%emt 0:14:26]} Bb7 {[%emt 0:02:20]} 10. Bb2 {[%emt 0:00:42]} Rc8 {[%emt 0:00:30]} 11. e4 {[%emt 0:13:36]} dxe4 {[%emt 0:03:09]} 12. Nxe4 {[%emt 0:03:38]} Nxe4 {[%emt 0:01:55]} 13. Qxe4 {[%emt 0:00:09]} Qc7 {[%emt 0:01:46]} 14. Bd3 {[%emt 0:02:09]} Nf6 {[%emt 0:01:40]} 15. Qh4 {[%emt 0:01:21]} h6 {[%emt 0:02:27]} 16. Rad1 {[%emt 0:08:37]} Be7 {[%emt 0:03:05]} 17. Rfe1 {[%emt 0:21:32]} Rfd8 {[%emt 0:06:50]} 18. c5 {[%emt 0:05:49]} Nd5 {[%emt 0:07:14]} 19. Qe4 {[%emt 0:00:41]} Bf6 {[%emt 0:03:46]} 20. Qh7+ {[%emt 0:04:26]} Kf8 {[%emt 0:00:29]} 21. Ne5 {[%emt 0:00:34]} Nf4 {[%emt 0:06:10]} 22. b4 {[%emt 0:01:45]} Nxd3 {[%emt 0:00:26]} 23. Rxd3 {[%emt 0:01:07]} Rd5 {[%emt 0:02:02]} 24. Rf3 {[%emt 0:03:09]} bxc5 {[%emt 0:15:58]} 25. Ng4 {[%emt 0:01:21]} Bxd4 {[%emt 0:11:05]} 26. Rxe6 {[%emt 0:01:00]} f5 {[%emt 0:00:20]} 27. Bxd4 {[%emt 0:02:35]} cxd4 {[%emt 0:00:45]} 28. Nxh6 {[%emt 0:01:31]} gxh6 {[%emt 0:05:58]} 29. Qh8+ {[%emt 0:01:08]} 1-0

[Event "Ceske Budejovice Open-A 2019"]
[Site "Ceske Budejovice"]
[Date "2019.07.02"]
[Round "4.14"]
[White "Muron, Miroslav"]
[Black "Brhlik, Antonin"]
[Result "1-0"]
[ECO "B25"]
[WhiteElo "2215"]
[BlackElo "1639"]
[Annotator "NA"]
[PlyCount "65"]
[EventDate "2019.07.02"]
[EventCountry "CZE"]
[SourceTitle "playchess.com"]
[Source "ChessBase"]
[SourceQuality "1"]
[TimeControl "5400+30"]

1. e4 c5 2. Nc3 Nc6 3. g3 g6 4. Bg2 Bg7 5. d3 d6 6. f4 e6 7. Nf3 Nge7 8. O-O O-O 9. Be3 Nd4 10. Bf2 Rb8 11. Nxd4 Bxd4 12. Rb1 a6 13. Ne2 Bxf2+ 14. Rxf2 b5 15. g4 f5 16. Ng3 Bb7 17. gxf5 exf5 18. Qd2 d5 19. exf5 Nxf5 20. Nxf5 Rxf5 21. d4 Qd6 22. Re1 Rbf8 23. Re5 cxd4 24. Qxd4 Rxe5 25. fxe5 Qc6 26. Rd2 Rd8 27. b3 Rc8 28. Rf2 Rf8 29. Rxf8+ Kxf8 30. c4 bxc4 31. bxc4 Qc7 32. Bxd5 Bc8 33. e6 1-0

[Event "Ceske Budejovice Open-A 2019"]
[Site "Ceske Budejovice"]
[Date "2019.07.02"]
[Round "4.15"]
[White "Szotkowski, David"]
[Black "Nagy, Ladislav"]
[Result "1/2-1/2"]
[ECO "E04"]
[WhiteElo "1869"]
[BlackElo "2061"]
[Annotator "NA"]
[PlyCount "49"]
[EventDate "2019.07.02"]
[EventCountry "CZE"]
[SourceTitle "playchess.com"]
[Source "ChessBase"]
[SourceQuality "1"]
[TimeControl "5400+30"]

1. d4 {[%emt 0:01:12]} Nf6 {[%emt 0:00:00]} 2. c4 {[%emt 0:01:22]} e6 {[%emt 0:00:11]} 3. g3 {[%emt 0:00:32]} d5 {[%emt 0:01:02]} 4. Bg2 {[%emt 0:00:28]} dxc4 {[%emt 0:01:12]} 5. Nf3 {[%emt 0:00:24]} Nc6 {[%emt 0:01:08]} 6. O-O {[%emt 0:00:25]} Rb8 {[%emt 0:01:49]} 7. Qc2 {[%emt 0:10:38]} b5 {[%emt 0:14:33]} 8. a4 {[%emt 0:04:25]} a6 {[%emt 0:06:19]} 9. axb5 {[%emt 0:03:43]} axb5 {[%emt 0:00:22]} 10. Rd1 {[%emt 0:08:22]} Nb4 {[%emt 0:08:49]} 11. Qd2 {[%emt 0:08:37]} Bb7 {[%emt 0:06:44]} 12. Nc3 {[%emt 0:01:33]} Be7 {[%emt 0:03:30]} 13. Ra5 {[%emt 0:21:34]} c6 {[%emt 0:04:05]} 14. Ra1 {[%emt 0:02:04]} Ra8 {[%emt 0:02:11]} 15. Rxa8 {[%emt 0:00:24]} Qxa8 {[%emt 0:00:06]} 16. Ne5 {[%emt 0:05:59]} O-O {[%emt 0:07:45]} 17. Ne4 {[%emt 0:06:03]} Nxe4 {[%emt 0:08:44]} 18. Bxe4 {[%emt 0:00:03]} Rd8 {[%emt 0:08:40]} 19. Qf4 {[%emt 0:03:29]} f6 {[%emt 0:04:03]} 20. Qh4 {[%emt 0:02:28]} fxe5 {[%emt 0:08:50]} 21. Qxe7 {[%emt 0:02:33]} Nd5 {[%emt 0:03:37]} 22. Qxe6+ {[%emt 0:00:52]} Kh8 {[%emt 0:00:13]} 23. Qf5 {[%emt 0:07:13]} Nf6 {[%emt 0:01:18]} 24. Bg5 {[%emt 0:00:19]} Qc8 {[%emt 0:01:06]} 25. Qxc8 {[%emt 0:02:48]} 1/2-1/2

[Event "Ceske Budejovice Open-A 2019"]
[Site "Ceske Budejovice"]
[Date "2019.07.02"]
[Round "4.16"]
[White "Puncochar, Jiri"]
[Black "Zacek, Petr"]
[Result "0-1"]
[ECO "B88"]
[WhiteElo "2014"]
[BlackElo "1883"]
[Annotator "NA RC"]
[PlyCount "110"]
[EventDate "2019.07.02"]
[EventCountry "CZE"]
[SourceTitle "playchess.com"]
[Source "ChessBase"]
[SourceQuality "1"]
[TimeControl "5400+30"]

1. e4 {[%emt 0:00:00]} c5 {[%emt 0:00:00]} 2. Nf3 {[%emt 0:00:00]} d6 {[%emt 0:00:00]} 3. d4 {[%emt 0:00:00]} cxd4 {[%emt 0:00:00]} 4. Nxd4 {[%emt 0:00:00]} Nf6 {[%emt 0:00:19]} 5. Nc3 {[%emt 0:00:01]} Nc6 {[%emt 0:00:25]} 6. Bc4 {[%emt 0:01:30]} e6 {[%emt 0:00:36]} 7. O-O {[%emt 0:04:48]} Be7 {[%emt 0:00:23]} 8. a3 {[%emt 0:03:04]} O-O {[%emt 0:00:39]} 9. Ba2 {[%emt 0:00:56]} a6 {[%emt 0:02:01]} 10. Be3 {[%emt 0:05:59]} Bd7 {[%emt 0:03:16]} 11. f3 {[%emt 0:04:19] B88: Sicilian: Sozin Attack} (11. Qe2 Rc8 12. f4 Qc7 13. f5 Kh8 14. Kh1 Rce8 15. fxe6 Nxd4 16. Bxd4 fxe6 17. e5 dxe5 18. Bxe5 Bd6 19. Bxd6 Qxd6 {½-½ (64) Guerra Mendez,J (2531)-Bauer,C (2637) Barcelona 2019}) 11... Qc7 {[%emt 0:00:33]} 12. Qe2 $146 {[%emt 0:01:12]} ({Predecessor:} 12. g4 h6 13. Qd2 Nxd4 14. Bxd4 Bc6 15. Rad1 {0-1 (67) Martynov,A (2364)-Brodt,A (2395) ICCF email 2010}) 12... Rac8 {[%emt 0:00:24]} 13. Nxc6 {[%emt 0:04:12]} Bxc6 {[%emt 0:00:20]} 14. Qf2 {[%emt 0:04:31]} b5 {[%emt 0:00:55]} 15. Rad1 {[%emt 0:03:07]} Qb7 {[%emt 0:00:30]} 16. Rd2 {[%emt 0:03:54]} Rfd8 {[%emt 0:02:42]} 17. Rfd1 {[%emt 0:00:45]} b4 {[%emt 0:05:48]} 18. axb4 {[%emt 0:00:29]} Qxb4 {[%emt 0:00:32]} 19. Bb3 {[%emt 0:00:32]} Ne8 {[%emt 0:07:20]} 20. Bb6 {[%emt 0:06:19]} Rd7 {[%emt 0:03:44]} 21. Ra1 {[%emt 0:02:21]} Rb8 {[%emt 0:03:44]} 22. Rxa6 {[%emt 0:11:17]} e5 {[%emt 0:04:34]} 23. Be3 {[%emt 0:05:25]} Qb7 {[%emt 0:01:21]} 24. Ra7 {[%emt 0:04:43]} Qc8 {[%emt 0:00:10]} 25. Rxd7 {[%emt 0:00:05]} Qxd7 {[%emt 0:00:38]} 26. f4 {[%emt 0:01:36]} Bf6 {[%emt 0:02:40]} 27. f5 {[%emt 0:02:16]} Be7 {[%emt 0:03:35]} 28. Qe2 {[%emt 0:06:13]} Nf6 {[%emt 0:00:46]} 29. Qc4 {[%emt 0:00:31]} Bf8 {[%emt 0:00:49]} 30. Bg5 {[%emt 0:01:39]} Qa7+ {[%emt 0:02:46]} 31. Kh1 {[%emt 0:00:53]} Nxe4 {[%emt 0:01:14]} 32. h4 {[%emt 0:03:34]} Nxd2 {[%emt 0:02:27]} 33. Bxd2 {[%emt 0:00:08]} Qb7 {[%emt 0:05:26]} 34. Qg4 {[%emt 0:00:31]} Qe7 {[%emt 0:01:37]} 35. Bg5 {[%emt 0:00:25]} Qd7 {[%emt 0:03:37]} 36. Nd5 {[%emt 0:04:15]} Bxd5 {[%emt 0:05:32]} 37. Bxd5 {[%emt 0:00:02]} Kh8 {[%emt 0:05:54]} 38. Qf3 {[%emt 0:04:56]} f6 {[%emt 0:09:27]} 39. Bc1 {[%emt 0:00:45]} Qa4 {[%emt 0:03:46]} 40. c4 {[%emt 0:00:37]} Qa1 {[%emt 0:02:07]} 41. Qc3 {[%emt 0:00:26]} g6 {[%emt 0:11:12]} 42. Kh2 {[%emt 0:05:55]} Qb1 {[%emt 0:05:52]} 43. fxg6 {[%emt 0:01:58]} Qxg6 {[%emt 0:00:13]} 44. Bd2 {[%emt 0:02:27]} Qg4 {[%emt 0:00:00]} 45. g3 $2 {[%emt 0:00:00]} (45. b4 $1 $15) 45... Qd4 $2 {[%emt 0:00:00]} (45... Qe2+ $19 46. Kh3 f5) 46. Qxd4 {[%emt 0:00:00]} exd4 {[%emt 0:00:00]} 47. b4 {[%emt 0:00:00]} Re8 {[%emt 0:00:00]} 48. Bf3 $1 {[%emt 0:00:00]} Kg7 {[%emt 0:00:00]} 49. Kg1 $15 {[%emt 0:00:00]} d3 {[%emt 0:00:00]} 50. Kf1 {[%emt 0:00:00]} Kg6 {[%emt 0:00:00]} 51. g4 {[%emt 0:00:00]} Bh6 {[%emt 0:00:00]} 52. Bxh6 {[%emt 0:00:00]} Kxh6 {[%emt 0:00:00]} 53. b5 {[%emt 0:00:00]} d2 {[%emt 0:00:00]} 54. Be2 {[%emt 0:00:00]} Re4 {[%emt 0:00:00]} 55. b6 {[%emt 0:01:03]} Rxc4 {[%emt 0:00:00]} 0-1

[Event "Ceske Budejovice Open-A 2019"]
[Site "Ceske Budejovice"]
[Date "2019.07.02"]
[Round "4.17"]
[White "Pavlicek, Petr"]
[Black "Stehlik, Jiri"]
[Result "1/2-1/2"]
[ECO "B07"]
[WhiteElo "1828"]
[BlackElo "1943"]
[Annotator "NA"]
[PlyCount "43"]
[EventDate "2019.07.02"]
[EventCountry "CZE"]
[SourceTitle "playchess.com"]
[Source "ChessBase"]
[SourceQuality "1"]
[TimeControl "5400+30"]

1. e4 {[%emt 0:00:00]} d6 {[%emt 0:04:45]} 2. d4 {[%emt 0:00:00]} Nf6 {[%emt 0:00:19]} 3. Nc3 {[%emt 0:00:22]} g6 {[%emt 0:00:21]} 4. g3 {[%emt 0:01:31]} Bg7 {[%emt 0:04:45]} 5. Bg2 {[%emt 0:00:19]} O-O {[%emt 0:00:10]} 6. Nge2 {[%emt 0:00:46]} Nbd7 {[%emt 0:02:04]} 7. O-O {[%emt 0:00:45]} e5 {[%emt 0:00:12]} 8. h3 {[%emt 0:02:32]} c6 {[%emt 0:02:27]} 9. Be3 {[%emt 0:01:20]} h6 {[%emt 0:03:47]} 10. Qd2 {[%emt 0:04:57]} Kh7 {[%emt 0:00:12]} 11. g4 {[%emt 0:10:04]} Qe7 {[%emt 0:05:01]} 12. Rad1 {[%emt 0:03:56]} Re8 {[%emt 0:03:35]} 13. a4 {[%emt 0:10:19]} a5 {[%emt 0:03:39]} 14. f4 {[%emt 0:04:50]} Nf8 {[%emt 0:06:28]} 15. Ng3 {[%emt 0:10:59]} Ne6 {[%emt 0:06:57]} 16. Nce2 {[%emt 0:09:15]} Nd7 {[%emt 0:11:37]} 17. f5 {[%emt 0:04:51]} Nxd4 {[%emt 0:02:48]} 18. Nxd4 {[%emt 0:00:45]} exd4 {[%emt 0:00:12]} 19. Bxd4 {[%emt 0:00:19]} Be5 {[%emt 0:05:58]} 20. Qf2 {[%emt 0:01:47]} Kg8 {[%emt 0:09:12]} 21. b3 {[%emt 0:04:03]} b6 {[%emt 0:05:10]} 22. Bxe5 1/2-1/2

[Event "Ceske Budejovice Open-A 2019"]
[Site "Ceske Budejovice"]
[Date "2019.07.02"]
[Round "4.18"]
[White "Steiner, Juraj"]
[Black "Stodola, Zdenek"]
[Result "1-0"]
[ECO "E61"]
[WhiteElo "1896"]
[BlackElo "1551"]
[Annotator "NA"]
[PlyCount "65"]
[EventDate "2019.07.02"]
[EventCountry "CZE"]
[SourceTitle "playchess.com"]
[Source "ChessBase"]
[SourceQuality "1"]
[TimeControl "5400+30"]

1. d4 {[%emt 0:00:00]} Nf6 {[%emt 0:00:00]} 2. c4 {[%emt 0:00:00]} g6 {[%emt 0:00:00]} 3. Nc3 {[%emt 0:00:00]} Bg7 {[%emt 0:00:00]} 4. Nf3 {[%emt 0:00:31]} O-O {[%emt 0:00:00]} 5. Bg5 {[%emt 0:00:13]} h6 {[%emt 0:00:00]} 6. Bh4 {[%emt 0:00:04]} c5 {[%emt 0:01:20]} 7. d5 {[%emt 0:03:50]} d6 {[%emt 0:00:38]} 8. e4 {[%emt 0:00:35]} Bd7 {[%emt 0:03:31]} 9. Be2 {[%emt 0:00:30]} Na6 {[%emt 0:00:53]} 10. O-O {[%emt 0:00:48]} Nc7 {[%emt 0:00:25]} 11. Nd2 {[%emt 0:00:59]} a6 {[%emt 0:06:06]} 12. a4 {[%emt 0:04:26]} Rb8 {[%emt 0:02:39]} 13. f4 {[%emt 0:02:01]} Nh7 {[%emt 0:08:20]} 14. Nf3 {[%emt 0:05:18]} Bf6 {[%emt 0:05:04]} 15. Qe1 {[%emt 0:10:14]} Bxh4 {[%emt 0:01:43]} 16. Qxh4 {[%emt 0:00:35]} Kg7 {[%emt 0:02:14]} 17. e5 {[%emt 0:00:58]} Ne8 {[%emt 0:05:17]} 18. Rad1 {[%emt 0:03:03]} Bf5 {[%emt 0:04:42]} 19. g4 {[%emt 0:00:23]} Bd7 {[%emt 0:01:35]} 20. Rd2 {[%emt 0:09:38]} f6 {[%emt 0:03:17]} 21. e6 {[%emt 0:02:43]} Bc8 {[%emt 0:01:06]} 22. f5 {[%emt 0:00:43]} gxf5 {[%emt 0:02:00]} 23. gxf5 {[%emt 0:00:33]} Rg8 {[%emt 0:02:21]} 24. Kh1 {[%emt 0:01:14]} Ng5 {[%emt 0:00:26]} 25. Qh5 {[%emt 0:00:33]} Kh7 {[%emt 0:00:51]} 26. Ng1 {[%emt 0:07:23]} Ng7 {[%emt 0:07:15]} 27. Qg6+ {[%emt 0:02:32]} Kh8 {[%emt 0:00:02]} 28. Qxh6+ {[%emt 0:00:16]} Nh7 {[%emt 0:00:08]} 29. Rd3 {[%emt 0:02:37]} Ne8 {[%emt 0:03:38]} 30. Bh5 {[%emt 0:01:00]} Rg7 {[%emt 0:02:04]} 31. Nh3 {[%emt 0:01:11]} Nc7 {[%emt 0:00:16]} 32. Nf4 {[%emt 0:01:04]} Kg8 {[%emt 0:01:37]} 33. Bf7+ 1-0

[Event "Ceske Budejovice Open-A 2019"]
[Site "Ceske Budejovice"]
[Date "2019.07.02"]
[Round "4.19"]
[White "Tajovsky, Matej"]
[Black "Kaspar, Jonas"]
[Result "1-0"]
[ECO "C05"]
[WhiteElo "1779"]
[BlackElo "1890"]
[Annotator "NA"]
[PlyCount "93"]
[EventDate "2019.07.02"]
[EventCountry "CZE"]
[SourceTitle "playchess.com"]
[Source "ChessBase"]
[SourceQuality "1"]
[TimeControl "5400+30"]

1. e4 e6 2. d4 d5 3. Nd2 Nf6 4. e5 Nfd7 5. f4 c5 6. c3 Nc6 7. Ndf3 cxd4 8. cxd4 Be7 9. g3 O-O 10. Be3 Nb6 11. b3 Bd7 12. h4 a5 13. Ng5 a4 14. Nxh7 Bb4+ 15. Kf2 Kxh7 16. Qh5+ Kg8 17. Bd3 f5 18. exf6 Rxf6 19. Bg6 Rxg6 20. Qxg6 axb3 21. Qb1 Bc3 22. Nf3 b2 23. Ng5 bxa1=Q 24. Qh7+ Kf8 25. Rxa1 Bxa1 26. Qh8+ Ke7 27. Qxg7+ Kd6 28. Nf7+ Kc7 29. Nxd8 Kxd8 30. h5 Rxa2+ 31. Kf3 Nc4 32. Bg1 Nd2+ 33. Kg4 e5+ 34. f5 Nxd4 35. Qh8+ Ke7 36. Qxe5+ Ne6 37. Bc5+ Kf7 38. Qxd5 Ra4+ 39. Kh3 Rd4 40. Bxd4 Ke7 41. Bxa1 Ng5+ 42. Kg4 Nde4 43. h6 Bc6 44. f6+ Ke8 45. Qe5+ Kd8 46. Qe7+ Kc8 47. f7 1-0

[Event "Ceske Budejovice Open-A 2019"]
[Site "Ceske Budejovice"]
[Date "2019.07.02"]
[Round "4.20"]
[White "Rolinkova, Lucie"]
[Black "Asatryan, Manvel"]
[Result "1/2-1/2"]
[ECO "A80"]
[WhiteElo "1703"]
[BlackElo "1799"]
[Annotator "NA"]
[PlyCount "66"]
[EventDate "2019.07.02"]
[EventCountry "CZE"]
[SourceTitle "playchess.com"]
[Source "ChessBase"]
[SourceQuality "1"]
[TimeControl "5400+30"]

1. d4 {[%emt 0:00:00]} f5 {[%emt 0:00:00]} 2. Bf4 {[%emt 0:00:00]} Nf6 {[%emt 0:00:10]} 3. e3 {[%emt 0:00:50]} g6 {[%emt 0:00:20]} 4. Nf3 {[%emt 0:01:04]} Bg7 {[%emt 0:00:38]} 5. c3 {[%emt 0:00:51]} O-O {[%emt 0:01:35]} 6. Nbd2 {[%emt 0:01:30]} d6 {[%emt 0:05:13]} 7. Bd3 {[%emt 0:03:12]} Nbd7 {[%emt 0:02:29]} 8. Qc2 {[%emt 0:05:15]} Qe8 {[%emt 0:03:23]} 9. Bc4+ {[%emt 0:17:42]} Kh8 {[%emt 0:01:49]} 10. Be6 {[%emt 0:04:20]} Nb6 {[%emt 0:05:46]} 11. Qb3 {[%emt 0:05:19]} h6 {[%emt 0:07:42]} 12. h4 {[%emt 0:19:28]} Bxe6 {[%emt 0:02:23]} 13. Qxe6 {[%emt 0:00:04]} Qf7 {[%emt 0:00:13]} 14. Qxf7 {[%emt 0:00:29]} Rxf7 {[%emt 0:00:02]} 15. O-O-O {[%emt 0:01:47]} Ng4 {[%emt 0:02:17]} 16. Bg3 {[%emt 0:02:35]} e5 {[%emt 0:00:36]} 17. dxe5 {[%emt 0:01:45]} dxe5 {[%emt 0:00:03]} 18. Nh2 {[%emt 0:00:44]} Nxh2 {[%emt 0:02:07]} 19. Bxh2 {[%emt 0:00:15]} Re8 {[%emt 0:02:41]} 20. Nf3 {[%emt 0:05:01]} e4 {[%emt 0:00:42]} 21. Nd4 {[%emt 0:01:16]} Bxd4 {[%emt 0:00:23]} 22. Rxd4 {[%emt 0:00:36]} c6 {[%emt 0:01:46]} 23. Rhd1 {[%emt 0:01:10]} Nd5 {[%emt 0:02:20]} 24. a3 {[%emt 0:01:07]} Nf6 {[%emt 0:02:15]} 25. Rd8 {[%emt 0:03:07]} Rxd8 {[%emt 0:02:52]} 26. Rxd8+ {[%emt 0:00:26]} Kh7 {[%emt 0:00:06]} 27. Rd6 {[%emt 0:06:21]} Ng4 {[%emt 0:01:22]} 28. Bg3 {[%emt 0:05:10]} g5 {[%emt 0:01:05]} 29. hxg5 {[%emt 0:00:08]} hxg5 {[%emt 0:00:09]} 30. Kd2 {[%emt 0:00:37]} f4 {[%emt 0:06:00]} 31. exf4 {[%emt 0:00:11]} gxf4 {[%emt 0:00:10]} 32. Bh4 {[%emt 0:00:08]} e3+ {[%emt 0:00:39]} 33. Ke2 {[%emt 0:00:44]} exf2 {[%emt 0:00:40]} 1/2-1/2

[Event "Ceske Budejovice Open-A 2019"]
[Site "Ceske Budejovice"]
[Date "2019.07.02"]
[Round "4.21"]
[White "Baloun, Tomas"]
[Black "Chval, Zdenek"]
[Result "1-0"]
[ECO "E65"]
[WhiteElo "1887"]
[BlackElo "1667"]
[Annotator "NA"]
[PlyCount "71"]
[EventDate "2019.07.02"]
[EventCountry "CZE"]
[SourceTitle "playchess.com"]
[Source "ChessBase"]
[SourceQuality "1"]
[TimeControl "5400+30"]

1. Nf3 {[%emt 0:00:00]} Nf6 {[%emt 0:00:00]} 2. c4 {[%emt 0:00:13]} g6 {[%emt 0:00:00]} 3. Nc3 {[%emt 0:00:30]} Bg7 {[%emt 0:00:00]} 4. g3 {[%emt 0:00:43]} O-O {[%emt 0:00:00]} 5. Bg2 {[%emt 0:00:10]} d6 {[%emt 0:00:11]} 6. d4 {[%emt 0:01:21]} c5 {[%emt 0:00:24]} 7. O-O {[%emt 0:01:01]} Nc6 {[%emt 0:00:13]} 8. e4 {[%emt 0:09:49]} Bg4 {[%emt 0:12:24]} 9. Be3 {[%emt 0:11:21]} cxd4 {[%emt 0:08:43]} 10. Bxd4 {[%emt 0:00:18]} Nxd4 {[%emt 0:00:40]} 11. Qxd4 {[%emt 0:00:06]} Nd7 {[%emt 0:08:32]} 12. Qe3 {[%emt 0:07:20]} Nc5 {[%emt 0:17:03]} 13. Rac1 {[%emt 0:05:44]} a5 {[%emt 0:13:57]} 14. Nd4 {[%emt 0:10:41]} Rc8 {[%emt 0:11:01]} 15. f4 {[%emt 0:08:40]} Bxd4 {[%emt 0:11:24]} 16. Qxd4 {[%emt 0:00:13]} Ne6 {[%emt 0:00:42]} 17. Qe3 {[%emt 0:03:02]} Rxc4 {[%emt 0:01:21]} 18. h3 {[%emt 0:00:36]} Bh5 {[%emt 0:06:20]} 19. g4 {[%emt 0:00:14]} g5 {[%emt 0:00:27]} 20. f5 {[%emt 0:04:09]} Nf4 {[%emt 0:02:06]} 21. gxh5 {[%emt 0:01:22]} Kh8 {[%emt 0:00:26]} 22. h6 {[%emt 0:05:40]} Rg8 {[%emt 0:00:55]} 23. Rcd1 {[%emt 0:00:45]} Qf8 {[%emt 0:01:15]} 24. Nd5 {[%emt 0:05:35]} Rc2 {[%emt 0:02:07]} 25. Rf2 {[%emt 0:02:04]} Rxf2 {[%emt 0:00:41]} 26. Qxf2 {[%emt 0:00:10]} Qxh6 {[%emt 0:00:34]} 27. Nxe7 {[%emt 0:01:31]} Re8 {[%emt 0:00:13]} 28. Qd4+ {[%emt 0:02:20]} f6 {[%emt 0:00:29]} 29. Qxd6 {[%emt 0:00:30]} Ne2+ {[%emt 0:01:28]} 30. Kh2 {[%emt 0:00:18]} Qf8 {[%emt 0:00:31]} 31. Qd2 {[%emt 0:05:10]} Nf4 {[%emt 0:00:10]} 32. Nd5 {[%emt 0:00:09]} Rd8 {[%emt 0:00:17]} 33. Qxa5 {[%emt 0:01:37]} Qd6 {[%emt 0:00:53]} 34. Ne3 {[%emt 0:02:21]} Nd3+ {[%emt 0:00:28]} 35. Kg1 {[%emt 0:01:51]} b6 {[%emt 0:00:43]} 36. Qc3 {[%emt 0:01:41]} 1-0

[Event "Ceske Budejovice Open-A 2019"]
[Site "Ceske Budejovice"]
[Date "2019.07.02"]
[Round "4.22"]
[White "Pavlicek, Adam"]
[Black "Vahala, Tomas"]
[Result "0-1"]
[ECO "D10"]
[WhiteElo "1651"]
[BlackElo "1774"]
[Annotator "NA"]
[PlyCount "68"]
[EventDate "2019.07.02"]
[EventCountry "CZE"]
[SourceTitle "playchess.com"]
[Source "ChessBase"]
[SourceQuality "1"]
[TimeControl "5400+30"]

1. d4 {[%emt 0:00:00]} d5 {[%emt 0:00:00]} 2. c4 {[%emt 0:00:00]} c6 {[%emt 0:00:04]} 3. cxd5 {[%emt 0:00:46]} cxd5 {[%emt 0:00:13]} 4. Nc3 {[%emt 0:00:24]} Nc6 {[%emt 0:00:58]} 5. Nf3 {[%emt 0:03:27]} Nf6 {[%emt 0:00:25]} 6. e3 {[%emt 0:03:14]} Bf5 {[%emt 0:03:24]} 7. a3 {[%emt 0:01:13]} h6 {[%emt 0:00:55]} 8. Bd3 {[%emt 0:04:56]} Bxd3 {[%emt 0:00:16]} 9. Qxd3 {[%emt 0:00:11]} e6 {[%emt 0:00:23]} 10. O-O {[%emt 0:01:48]} Be7 {[%emt 0:00:41]} 11. Bd2 {[%emt 0:01:34]} O-O {[%emt 0:00:49]} 12. b4 {[%emt 0:02:04]} a6 {[%emt 0:00:54]} 13. Na4 {[%emt 0:02:56]} Ne4 {[%emt 0:04:00]} 14. Nc5 {[%emt 0:02:37]} Nd6 {[%emt 0:03:19]} 15. Ne5 {[%emt 0:03:27]} Nxe5 {[%emt 0:07:40]} 16. dxe5 {[%emt 0:00:14]} Nc4 {[%emt 0:00:06]} 17. Nxb7 {[%emt 0:01:50]} Qc7 {[%emt 0:04:47]} 18. Nc5 {[%emt 0:03:48]} Nxe5 {[%emt 0:01:04]} 19. Nxa6 {[%emt 0:00:52]} Qb6 {[%emt 0:01:24]} 20. Qd4 {[%emt 0:01:35]} Qxd4 {[%emt 0:00:27]} 21. exd4 {[%emt 0:00:07]} Nc4 {[%emt 0:00:16]} 22. Nc5 {[%emt 0:06:02]} Nxd2 {[%emt 0:00:09]} 23. Rfd1 {[%emt 0:00:45]} Nc4 {[%emt 0:00:36]} 24. a4 {[%emt 0:00:16]} Rfc8 {[%emt 0:07:36]} 25. Nd3 {[%emt 0:04:03]} Bf6 {[%emt 0:15:56]} 26. Nc5 {[%emt 0:01:38]} Nb2 {[%emt 0:00:32]} 27. Rd2 {[%emt 0:00:33]} Nxa4 {[%emt 0:00:31]} 28. Nd7 {[%emt 0:07:26]} Nb6 {[%emt 0:01:58]} 29. Nxf6+ {[%emt 0:02:05]} gxf6 {[%emt 0:00:05]} 30. Rb1 {[%emt 0:01:58]} Nc4 {[%emt 0:01:09]} 31. Rd3 {[%emt 0:03:31]} Rcb8 {[%emt 0:01:15]} 32. h3 {[%emt 0:00:53]} Ra4 {[%emt 0:01:07]} 33. b5 {[%emt 0:00:49]} Ra5 {[%emt 0:00:02]} 34. b6 {[%emt 0:02:42]} Rxb6 {[%emt 0:00:29]} 0-1

[Event "Ceske Budejovice Open-A 2019"]
[Site "Ceske Budejovice"]
[Date "2019.07.02"]
[Round "4.23"]
[White "Valasek, Jakub"]
[Black "Chval, Petr"]
[Result "1/2-1/2"]
[ECO "B40"]
[WhiteElo "1636"]
[BlackElo "1885"]
[Annotator "NA"]
[PlyCount "62"]
[EventDate "2019.07.02"]
[EventCountry "CZE"]
[SourceTitle "playchess.com"]
[Source "ChessBase"]
[SourceQuality "1"]
[TimeControl "5400+30"]

1. e4 {[%emt 0:00:00]} c5 {[%emt 0:00:00]} 2. Nf3 {[%emt 0:00:37]} e6 {[%emt 0:00:00]} 3. Nc3 {[%emt 0:01:07]} a6 {[%emt 0:04:38]} 4. Be2 {[%emt 0:03:38]} b5 {[%emt 0:01:57]} 5. d3 Nc6 {[%emt 0:00:41]} 6. O-O {[%emt 0:02:18]} d6 {[%emt 0:00:42]} 7. Be3 {[%emt 0:04:15]} Nf6 {[%emt 0:06:38]} 8. Nd2 Be7 {[%emt 0:00:35]} 9. a3 {[%emt 0:02:31]} Nd4 {[%emt 0:02:48]} 10. Nb3 {[%emt 0:05:08]} Nxe2+ {[%emt 0:00:27]} 11. Qxe2 {[%emt 0:01:50]} Qc7 {[%emt 0:00:09]} 12. f3 {[%emt 0:06:20]} O-O {[%emt 0:03:50]} 13. Qf2 Nd7 14. d4 {[%emt 0:06:00]} cxd4 {[%emt 0:01:21]} 15. Bxd4 {[%emt 0:05:12]} Bb7 {[%emt 0:10:32]} 16. Rfe1 Rfe8 {[%emt 0:00:24]} 17. Rad1 {[%emt 0:02:59]} Rac8 {[%emt 0:04:46]} 18. Qg3 {[%emt 0:08:06]} e5 {[%emt 0:01:07]} 19. Be3 Nb6 20. Bxb6 {[%emt 0:03:44]} Qxb6+ {[%emt 0:00:36]} 21. Qf2 {[%emt 0:03:38]} Qc7 22. Kh1 {[%emt 0:01:48]} h5 {[%emt 0:14:02]} 23. Rd3 {[%emt 0:03:25]} a5 24. Na1 b4 {[%emt 0:12:24]} 25. axb4 {[%emt 0:01:55]} axb4 {[%emt 0:00:07]} 26. Nd5 {[%emt 0:03:39]} Qc5 27. Qd2 Bxd5 {[%emt 0:03:03]} 28. Rxd5 {[%emt 0:01:45]} Qb6 29. Qe2 Rc5 {[%emt 0:02:06]} 30. Red1 {[%emt 0:04:54]} Rec8 31. Rxc5 {[%emt 0:01:38]} dxc5 {[%emt 0:02:22]} 1/2-1/2